Cogmind - Beta 13 @@@ ROGUE MODE // 2024.04.17 @ 12:10:06 Player: Pep Boy Result: Self-destructed Performance ------------- Evolutions (0) 0 Regions Visited (4) 800 Robots Destroyed (21) 105 Value Destroyed (419) 419 Prototype IDs (2) 40 Alien Tech Used (0) 0 Bonus (300) 300 TOTAL SCORE: 1664 Bonus ------- Aligned with FarCom 300 Cogmind --------- Core Integrity 28/250 Matter 259/300 Energy 125/125 System Corruption 1% Temperature Cool (23) Movement Flying (117) Ox1 Location -9/Mines Parts ------- > --- POWER (1) -------- Light Ion Engine > --- PROPULSION (2) --- Flight Unit Flight Unit > --- UTILITY (2) ------ Signal Interpreter Hacking Suite > --- WEAPON (2) ------- Makeshift Shrapnel Gun Rocket Launcher > --- INVENTORY (5) ---- Improved Heat Sink Cloak of Protection Shield Generator Peak State ------------ > --- POWER ------------ Light Ion Engine > --- PROPULSION ------- Flight Unit Flight Unit > --- UTILITY ---------- Signal Interpreter Hacking Suite > --- WEAPON ----------- Makeshift Shrapnel Gun Rocket Launcher > --- INVENTORY -------- Improved Heat Sink Cloak of Protection Shield Generator [Rating: 14] Favorites ----------- Power Light Ion Engine Engine Light Ion Engine Propulsion Flight Unit Wheel Wheel Hover Unit Hover Unit Flight Unit Flight Unit Utility Hacking Suite Device ECM Suite Storage Small Storage Unit Processor Signal Interpreter Hackware Hacking Suite Weapon Datajack Ballistic Gun Light Assault Rifle Launcher Rocket Launcher Impact Weapon Hammer Special Melee Weapon Datajack Build | -11 -10 -10 -10 -9 ------- Run | Yrd Mat Min Exi Min Slots Evolved . | . . . . . Power . | . . . . . Propulsion . | . . . . . Utility . | . . . . . Weapon . | . . . . . Parts Attached 33 | 6 21 1 . 5 Power 5 | 1 3 . . 1 Engine 5 | 1 3 . . 1 Core . | . . . . . Reactor . | . . . . . Propulsion 14 | 2 9 . . 3 Treads . | . . . . . Leg . | . . . . . Wheel 2 | 2 . . . . Hover 2 | . 2 . . . Flight 10 | . 7 . . 3 Utility 5 | 1 4 . . . Device 2 | . 2 . . . Storage 1 | 1 . . . . Processor 1 | . 1 . . . Hackware 1 | . 1 . . . Protection . | . . . . . Artifact . | . . . . . Weapon 9 | 2 5 1 . 1 Energy Gun . | . . . . . Energy Cannon . | . . . . . Ballistic Gun 6 | 2 3 1 . . Ballistic Cannon . | . . . . . Launcher 1 | . . . . 1 Special Weapon . | . . . . . Impact Weapon 1 | . 1 . . . Slashing Weapon . | . . . . . Piercing Weapon . | . . . . . Special Melee Weapon 1 | . 1 . . . Unidentified Prototypes . | . . . . . Parts Lost 4 | . 2 . . 2 Power 1 | . 1 . . . Propulsion 1 | . . . . 1 Utility 1 | . 1 . . . Weapon 1 | . . . . 1 Highest Loss Streak 1 | . 1 . . 1 To Critical Strikes . | . . . . . Average Slot Usage (%) 96 | . 95 100 100 94 Engine 13 | . 13 14 14 14 Wheel 5 | . 9 . . . Hover 2 | . 5 . . . Flight 20 | . 13 28 28 27 Device 2 | . 5 . . . Processor 10 | . 7 14 14 14 Hackware 13 | . 12 14 14 14 Ballistic Gun 14 | . 16 9 14 14 Impact Weapon 4 | . 5 4 . . Special Melee Weapon 7 | . 3 14 14 9 Naked Turns . | . . . . . Heaviest Build 13 | 11 13 6 6 6 Greatest Support 26 | 26 26 8 8 8 Greatest Overweight (x) 1 | . 1 . . . Average Overweight (x) . | . . . . . Largest Inventory Capacity 8 | 8 8 5 5 5 Average Capacity 5 | 7 5 5 5 5 Most Carried 5 | 5 5 5 5 5 Average Carried 4 | 1 4 4 5 4 Final Capacity 8 | 8 5 5 5 5 Final Carried 5 | 1 5 5 5 3 Class Distribution -------------------- 64% | Scavenger-Mutant 35% | Mutant Dominant Class ---------------- Mutant | -10/Materials Scavenger-Mutant | -10/Mines Scavenger-Mutant | -10/Exiles Scavenger-Mutant | -9/Mines Resources | -11 -10 -10 -10 -9 ----------- Run | Yrd Mat Min Exi Min Matter Collected 704 | 254 340 . . 110 Remotely . | . . . . . Salvage Created 502 | . 374 . . 128 Parts 38 | . 29 . . 9 Haulers Intercepted . | . . . . . Recyclers Shooed . | . . . . . Parts Field Recycled . | . . . . . Retrieved Matter . | . . . . . Parts Self-Destructed . | . . . . . Prevented . | . . . . . Kills | -11 -10 -10 -10 -9 ------- Run | Yrd Mat Min Exi Min Combat Hostiles Destroyed 17 | . 10 . . 7 Melee 2 | . 2 . . . Guns 15 | . 8 . . 7 Classes Destroyed 6 | . 5 . . 1 Worker 1 | . 1 . . . Operator 1 | . 1 . . . Watcher 3 | . 3 . . . Swarmer 9 | . 5 . . 4 Grunt 7 | . 5 . . 2 Assembled 1 | . . . . 1 Best Kill Streak 7 | . 7 . . 4 Combat Bots Only 5 | . 5 . . 4 Max Kills in Single Turn 1 | . 1 . . 1 Gunslinging . | . . . . . Exploded . | . . . . . Melee 1 | . 1 . . . Uniques/NPCs Destroyed . | . . . . . Combat | -11 -10 -10 -10 -9 -------- Run | Yrd Mat Min Exi Min Hostile Shots Fired 75 | . 38 . . 37 Missed 20 | . 10 . . 10 Damage Taken 596 | . 328 . . 268 Core 222 | . 116 . . 106 Absorbed by Shields . | . . . . . Regen/Repaired (Parts) 7 | . 7 . . . Core Remaining (%) 100 | 100 . . . . Volleys Fired 53 | . 35 . . 18 Largest 2 | . 2 . . 2 Hottest 57 | . 40 . . 57 Shots Fired 89 | . 70 . . 19 Gun 88 | . 70 . . 18 Cannon . | . . . . . Launcher 1 | . . . . 1 Special . | . . . . . Kinetic 88 | . 70 . . 18 Thermal . | . . . . . Explosive 1 | . . . . 1 Electromagnetic . | . . . . . Robot Hit Streak 13 | . 13 . . 8 Robot Miss Streak 5 | . 5 . . 4 Penetration Max . | . . . . . Secondary Targets . | . . . . . Shots Hit Robots 69 | . 51 . . 18 Core Hits 39 | . 24 . . 15 Critical Kills . | . . . . . Critical Parts Destroyed 2 | . 2 . . . Critical Strikes 2 | . 2 . . . Smash 2 | . 2 . . . Melee Attacks 5 | . 5 . . . Impact 5 | . 5 . . . Slashing . | . . . . . Piercing . | . . . . . Sneak Attacks . | . . . . . Combat Hostiles . | . . . . . Follow-up Attacks . | . . . . . Damage Inflicted 938 | . 617 . . 321 Guns 808 | . 493 . . 315 Cannons . | . . . . . Explosions 6 | . . . . 6 Melee 124 | . 124 . . . Ramming . | . . . . . Kinetic 808 | . 493 . . 315 Thermal . | . . . . . Explosive 6 | . . . . 6 Electromagnetic . | . . . . . Impact 124 | . 124 . . . Slashing . | . . . . . Piercing . | . . . . . Highest Corruption 1 | . 1 1 1 1 Average Corruption 1 | . 1 1 1 1 Corruption Purged . | . . . . . Corruption Blocked . | . . . . . Effects 4 | . . 1 . 3 Message Errors 1 | . . . . 1 Energy Discharges 1 | . . . . 1 Data Loss (minor) 1 | . . . . 1 Data Loss (major) 1 | . . 1 . . Overload Shots . | . . . . . Overflow Damage 59 | . 59 . . . Projectiles . | . . . . . Explosions . | . . . . . Melee 59 | . 59 . . . Knockbacks . | . . . . . Impact . | . . . . . Kinetic . | . . . . . Secondary . | . . . . . Self-Inflicted Damage . | . . . . . Shots . | . . . . . Rammed . | . . . . . Targets Rammed . | . . . . . Kicked . | . . . . . Crushed . | . . . . . Highest Temperature 23 | . 20 . . 23 Average Temperature 7 | . 7 . . 8 Received Heat Transfer 172 | . 111 . . 61 Siege Activations . | . . . . . Robots Corrupted . | . . . . . Combat Hostiles . | . . . . . Parts Fried 1 | . 1 . . . Impact Corruptions 3 | . 3 . . . Robots Melted . | . . . . . Combat Hostiles . | . . . . . Parts Melted . | . . . . . Heat Transferred . | . . . . . Parts Sabotaged . | . . . . . Parts Stolen . | . . . . . Parts Stripped . | . . . . . Power Chain Reactions . | . . . . . Alert | -11 -10 -10 -10 -9 ------- Run | Yrd Mat Min Exi Min Peak Influence 314 | . 314 30 . 162 Initial 30 | . . 30 . . Average 84 | . 92 30 . 126 Maximum Alert Level 1 | . 1 . . . Low Security (%) 92 | 100 86 100 . 100 Level 1 7 | . 13 . . . Level 2 . | . . . . . Level 3 . | . . . . . Level 4 . | . . . . . Level 5 . | . . . . . High Security . | . . . . . Max Security . | . . . . . Squads Dispatched 1 | . 1 . . . Investigation . | . . . . . Extermination . | . . . . . Reinforcement 1 | . 1 . . . Assault . | . . . . . Garrison . | . . . . . Intercept . | . . . . . Searches Triggered . | . . . . . Construction Impeded . | . . . . . Haulers Reinforced . | . . . . . Active Scanning Responses . | . . . . . Cargo Convoy Interrupts . | . . . . . Stealth | -11 -10 -10 -10 -9 --------- Run | Yrd Mat Min Exi Min Distress Signals . | . . . . . Communications Jammed . | . . . . . Distress Signals . | . . . . . Times Spotted 43 | . 26 . . 17 Peak Tracking Total 7 | . 7 . . 7 Tactical Retreats 5 | . 4 . . 1 Traps | -11 -10 -10 -10 -9 ------- Run | Yrd Mat Min Exi Min Traps Triggered 2 | . 2 . . . Indirectly . | . . . . . Trap Hack Attempts . | . . . . . Triggered . | . . . . . Disarmed 2 | . 2 . . . Reprogrammed . | . . . . . Reused . | . . . . . Traps Extracted . | . . . . . Installed . | . . . . . Triggered . | . . . . . Machines | -11 -10 -10 -10 -9 ---------- Run | Yrd Mat Min Exi Min Machines Disabled . | . . . . . Max in Single Turn . | . . . . . Machines Repaired . | . . . . . Machines Dismantled . | . . . . . Machines Sabotaged . | . . . . . Overloaded Fab Kills . | . . . . . Hacking | -11 -10 -10 -10 -9 --------- Run | Yrd Mat Min Exi Min Machines Accessed 9 | . 9 . . . Terminals 7 | . 7 . . . Fabricators . | . . . . . Repair Stations 1 | . 1 . . . Recycling Units 1 | . 1 . . . Scanalyzers . | . . . . . Garrison Access . | . . . . . Total Hacks 27 | . 27 . . . Successful 15 | . 15 . . . Failed 12 | . 12 . . . Catastrophic 1 | . 1 . . . Database Lockouts . | . . . . . Manual 1 | . . . 1 . Terminals 24 | . 24 . . . Fabricators . | . . . . . Repair Stations 2 | . 2 . . . Recycling Units 1 | . 1 . . . Scanalyzers . | . . . . . Garrison Access . | . . . . . Terminal Hacks 12 | . 12 . . . Prototype ID Bank 1 | . 1 . . . Emergency Access Points 1 | . 1 . . . Alert Level 1 | . 1 . . . Unreport Threat 1 | . 1 . . . Locate Traps 1 | . 1 . . . Disarm Traps 2 | . 2 . . . Dispatch Records 2 | . 2 . . . Maintenance Status 1 | . 1 . . . Assault Status 1 | . 1 . . . Hauler Manifests 1 | . 1 . . . Fabricator Hacks . | . . . . . Repair Station Hacks 2 | . 2 . . . Scan Component 1 | . 1 . . . Repair 1 | . 1 . . . Recycling Unit Hacks 1 | . 1 . . . Report Inventory 1 | . 1 . . . Scanalyzer . | . . . . . Garrison Access Hacks . | . . . . . Unauthorized Hacks . | . . . . . Terminals . | . . . . . Fabricators . | . . . . . Repair Stations . | . . . . . Recycling Units . | . . . . . Scanalyzers . | . . . . . Garrison Access . | . . . . . Data Cores Recovered . | . . . . . Used . | . . . . . Hacking Detections 6 | . 6 . . . Full Trace Events . | . . . . . Feedback Events . | . . . . . Feedback Blocked . | . . . . . Robot Schematics Acquired . | . . . . . Robots Built . | . . . . . Authchips . | . . . . . Time . | . . . . . Total Robot Build Rating . | . . . . . Part Schematics Acquired . | . . . . . Parts Built . | . . . . . Authchips . | . . . . . Time . | . . . . . Total Part Build Rating . | . . . . . Parts Repaired 1 | . 1 . . . Time 26 | . 26 . . . Parts Recycled . | . . . . . Recycled Matter . | . . . . . Retrieved Matter . | . . . . . Retrieved Components . | . . . . . Parts Scanalyzed . | . . . . . Part Schematics Acquired . | . . . . . Parts Damaged . | . . . . . Bothacking | -11 -10 -10 -10 -9 ------------ Run | Yrd Mat Min Exi Min Used RIF Installer . | . . . . . Robots Hacked . | . . . . . Non-combat . | . . . . . Combat . | . . . . . Robot Hacks Applied . | . . . . . Relay Couplers Released . | . . . . . Fabnet Peak Effective % . | . . . . . Robots Rewired . | . . . . . Allies Hacked . | . . . . . Hacks Repelled . | . . . . . Allies | -11 -10 -10 -10 -9 -------- Run | Yrd Mat Min Exi Min Total Allies 3 | . . . . 3 Largest Group 3 | . . . . 3 Highest-Rated Group 40 | . . . . 40 Highest-Rated Ally 16 | . . . . 16 Total Orders . | . . . . . Ally Attacks 8 | . . . . 8 Total Damage 53 | . . . . 53 Kills 1 | . . . . 1 Allies Corrupted . | . . . . . Allies Melted . | . . . . . Intel | -11 -10 -10 -10 -9 ------- Run | Yrd Mat Min Exi Min Robot Analysis Total . | . . . . . Derelict Logs Recovered 4 | . . 3 . 1 Drone Launches . | . . . . . Drone Recoveries . | . . . . . Exploration | -11 -10 -10 -10 -9 ------------- Run | Yrd Mat Min Exi Min Turns Passed 1466 | 47 777 231 142 269 Spaces Moved 2380 | 41 1134 568 379 258 Core 7 | 7 . . . . Treads . | . . . . . Legs . | . . . . . Wheels 228 | 34 194 . . . Hover 75 | . 75 . . . Flight 2070 | . 865 568 379 258 Fastest Speed 37 | 50 37 37 37 37 Average Speed 42 | 83 47 37 37 37 Slowest Speed 125 | 90 125 37 37 37 Overloaded Moves . | . . . . . Propulsion Burnouts . | . . . . . Robots Hopped 12 | . 7 4 . 1 Cave-ins Triggered . | . . . . . Exploration Rate (%) 62 | 4 99 98 62 48 Regions Visited 4 Branch Regions 3 Pre-discovered Areas 3 | . . 2 . 1 Known Exits Taken 3 | . 1 1 1 . Unknown Exits Taken 1 | 1 . . . . Scrap Searched 2 | . . 1 . 1 Spaces Dug . | . . . . . Terrain Destroyed 15 | . . . . 15 Melee . | . . . . . Projectile . | . . . . . AOE 15 | . . . . 15 Terrain Rammed . | . . . . . Walls Destroyed . | . . . . . Machines Disabled . | . . . . . Actions | -11 -10 -10 -10 -9 --------- Run | Yrd Mat Min Exi Min Total 2728 | 53 1298 584 380 413 Wait 224 | . 77 17 . 130 Move 2352 | 40 1119 559 378 256 Hop 12 | . 7 4 . 1 Pick Up 25 | 7 16 1 1 . Fast Attach 7 | . 6 1 . . Attach 14 | 6 6 . . 2 Detach 1 | . 1 . . . Swap 12 | . 9 . . 3 Drop 23 | . 17 2 1 3 Fire 53 | . 35 . . 18 Melee 5 | . 5 . . . Ram . | . . . . . Kick . | . . . . . Crush . | . . . . . Escape Stasis . | . . . . . Rewire . | . . . . . Trap . | . . . . . Miscellaneous . | . . . . . Route ------- -11/Scrapyard -10/Materials (discovered 4 exits: *Mat x3 / *Min) -10/Mines (discovered 3 exits: *Mat x2 / *Exi) -10/Exiles (discovered 2 exits: *Min x2) -9/Mines History --------- Turn | Location | Event 34 | -11/Scrapyard | Discovered new exit (range 13) 48 | -11/Scrapyard | Entered Materials 230 | -10/Materials | Discovered new exit (range 8) 300 | -10/Materials | Build established: Mutant 451 | -10/Materials | Discovered new exit (range 15) 524 | -10/Materials | Repaired Lgt. Ion Engine 574 | -10/Materials | Identified exit to Materials 610 | -10/Materials | Discovered new exit (range 12) 657 | -10/Materials | Discovered exit to Materials (range 8) 823 | -10/Materials | Identified exit to Mines 825 | -10/Materials | Entered Mines 871 | -10/Mines | Learned location of Recycling (-7) 875 | -10/Mines | Learned location of Zion (-7) 906 | -10/Mines | A weapon hastily lodged in a ceiling crevice suddenly fell to the ground 928 | -10/Mines | Build established: Scavenger-Mutant 1031 | -10/Mines | Discovered exit to Materials (range 7) 1038 | -10/Mines | Received a Rocket Launcher from a helpful Derelict 1054 | -10/Mines | Deemed a non-threat by the Exiles lab entrance 1054 | -10/Mines | Discovered new exit (range 5) 1055 | -10/Mines | Identified exit to Exiles 1056 | -10/Mines | Entered Exiles 1065 | -10/Exiles | Met 8R-AWN 1072 | -10/Exiles | Met EX-HEX 1086 | -10/Exiles | Met EX-BIN 1092 | -10/Exiles | Aligned with FarCom system 1092 | -10/Exiles | Given EX-Vault access code 1101 | -10/Exiles | Opened EX-Vault 1103 | -10/Exiles | Found Prototype Device 1113 | -10/Exiles | Warned to stay clear of 0b10 Research branches 1145 | -10/Exiles | Discovered new exit (range 14) 1149 | -10/Exiles | Identified exit to Mines 1182 | -10/Exiles | Met EX-DEC 1195 | -10/Exiles | Discovered exit to Mines (range 10) 1198 | -10/Exiles | Left Exiles lab with Cloak of Protection 1198 | -10/Exiles | Entered Mines 1206 | -9/Mines | Core integrity fell below 50% 1405 | -9/Mines | Assisted by bots powering up and referring to "LRC-V3" 1419 | -9/Mines | Learned location of Storage (-7) 1441 | -9/Mines | Assembled infested the area 1446 | -9/Mines | Assisted by a Guerilla fighting off Assembled 1461 | -9/Mines | Core integrity fell below 20% 1467 | -9/Mines | Self-destructed Last Messages --------------- following our previous successful raids." World map updated: -7/Storage. 01421_ 2I-6JR(g): "We scattered so the Unaware couldn't effectively use their advantage in numbers, and I suggest you do the same." 01421_ 2I-6JR(g) slips back into the shadows. 01441_ ALERT: Infestation in the mines, dispatching Demolisher response squad. 01446_ A derelict emerges from the shadows: "You need to get out of here! I've been tracking a group of Assembled to figure out where they're coming from, and they're closing on this area, come on!" 01446_ C8-DJ0(h): "I'll hold them off! Go on ahead or try to find another way!" 01446_ HV Slug penetrates Wall. 01447_ U-05 Engineer system terminally corrupted. 01458_ Flight Unit destroyed. 01459_ as-28105 destroyed. Map ----- +----------------------------------------------------+ | #??????????###?####??????????## #####??????# #??? | | ??????????? ### ##?????????# ##?????# #??? | | ???????????# ## #?????????# #?????# #??? | | ???????????# ## ##??###???# ##?????# ###? | | ?????????### ## ### ##??# ##?????## ## | | ????????## # ##?# ##????### # | | ???????## #?## ##????## ## | | ???????# ### #?## ##????# ##? | | #####??## ##?## #??## ###??# #?? | | #??## ##????# ##### ##?## #?? | | #?## #??????# ## ##?# ##? | | ## ### ##???????##### ### #?## #? | | ?# ##????????????# #?## #### #? | | ?# ##?????????????# #?### ## #? | | ?######## ################ #?# ##? | | ????????## [ ! #?# #?? | | ?????????## % #########?# #?? | | ??????????########### #?????????##### #?? | | ??????????????????? #?????????????## ##?? | | ?????????????????? #??????????????# ##??? | | ?????????????????#######?????????????## ###???? | | ??????????????????????????????##?????# ##?????? | | ????????????????????????????? # #???# ##?????? | | ??????????????????????###### ##### ##????? | | ??????????????????????# ]%= a % #????? | | ??????????????????????# @ a * % #???? | | ??????????????????????#aa## ##### #? | | ??????????????????????# ## #######???##### # | | ??????????????????????# #?????????????# = # | | ?????????l????????????# ##??????????????# ## | | ???????????g???????# ## %##???????????????# #? | | ???????????????????# #???????????????? #? | | ???????????????????#### ??????????? %% | | ??????????????????????## """" #???????? [ | | ???????????????????????## """" ??????????????? | | ????????????????????????## """"???????????????? | | ?????????????????????????## ???????????????? | | ??????????????????????????########???????????????? | | ?????????????????????????????????????????????????? | | ?????????????????????????????????????????????????? | | ?????????????????????????????????????????????????? | | ?????????????????????????????????????????????????? | | ?????????????????????????????????????????????????? | | ?????????????????????????????????????????????????? | | ?????????????????????????????????????????????????? | | ?????????????????????????????????????????????????? | | ?????????????????????????????????????????????????? | | ?????????????????????????????????????????????????? | | ?????????????????????????????????????????????????? | | ?????????????????????????????????????????????????? | +----------------------------------------------------+ Best States ------------- Heat Dissipation 25 Energy Generation 10 Energy Capacity 250 Matter Stores 300 Matter Capacity 300 Sight Range 16 Terrain Scan Density 10 ECM Strength 1 Evasion (%) 62 Offensive Hacking 10 Item Schematics ----------------- None Robot Schematics ------------------ None Fabricated ------------ Nothing Alien Tech Used ----------------- None Achievements -------------- Everything Is Under Control Challenges ------------ None Game ------ Seed PhasingTerrabombTreads Manual? 0 Play Time 00:24:59 Cumulative 7.4 hours Start 2024.04.17 @ 11:45:08 End 2024.04.17 @ 12:10:06 Sessions 1 Manual Loads 0 Difficulty Rogue Special Mode None Game No. 8 Rogue 8 Adventurer 0 Explorer 0 Win Type - Total 0 Types 0/0/0/0/0/0/0/0/0 Lore% 15 Gallery% 16 Achievement% 17 Wizard Run 0 Options --------- Layout 1 ASCII 0 Keyboard 0 Movement Mouse Keybinds 0 Fullscreen 1 Font 48/Smallcaps Map View 50x35 Zoom Use 0% Tactical HUD 1 Map Filters NONE Filters NONE Steam 1 RUN: 7fdb5d23-a9ca-4222-9278-567541294b27